bitfinex/quotes_SOLUSD_20241102
["timestamp","ask_amount","ask_price","bid_price","bid_amount"]
[1730582675802,4.49896433,166.3,166.29,47.32962874]
[1730582677101,4.49929439,166.3,166.29,77.39752874]
[1730582677308,0.0512346,166.33,166.32,0.1]
[1730582677595,0.0512346,166.33,166.32,55.5111437]
[1730582678691,0.0512346,166.33,166.32,61.5236437]
[1730582679104,0.0512346,166.33,166.32,85.3005277]
[1730582679294,0.0512346,166.33,166.32,106.6995277]
[1730582682903,32.19072874,166.45,166.35,0.1]
[1730582683096,32.19072874,166.45,166.39,11.08222874]
[1730582684609,32.19072874,166.45,166.4,6.0096]
[1730582690005,32.19072874,166.45,166.4,21.0336]
[1730582690904,32.19072874,166.45,166.4,32.11582874]
[1730582692427,17.08962874,166.46,166.41,11.08222874]
[1730582693627,17.08962874,166.46,166.42,6.0088]
[1730582696106,11.08222874,166.47,166.42,6.0088]
[1730582697206,17.08942874,166.47,166.42,21.031]
[1730582697422,17.08942874,166.47,166.42,32.11322874]
[1730582699311,11.08222874,166.48,166.43,11.08222874]
[1730582699621,32.86952874,166.49,166.43,11.08222874]
[1730582699817,32.86952874,166.49,166.44,11.08222874]
[1730582700326,11.08222874,166.5,166.45,11.08222874]
[1730582700529,11.08222874,166.48,166.43,11.08222874]
[1730582700831,11.08222874,166.45,166.39,26.10682874]
[1730582701025,11.08222874,166.46,166.41,11.08222874]
[1730582701229,16.2255,166.47,166.37,37.2407]
[1730582701403,6.0074,166.46,166.37,37.2407]
[1730582701606,11.08222874,166.44,166.39,11.08222874]
[1730582702115,11.08222874,166.44,166.38,11.08222874]
[1730582702522,11.08222874,166.44,166.39,32.11702874]
[1730582704121,11.08222874,166.44,166.39,15.0249]
[1730582705328,11.08222874,166.43,166.39,15.0249]
[1730582705517,11.08222874,166.43,166.39,21.0348]
[1730582705714,11.08222874,166.46,166.4,11.08222874]
[1730582706909,11.08222874,166.46,166.41,21.0323]
[1730582709534,11.08222874,166.46,166.41,32.11452874]
[1730582709835,11.08222874,166.49,166.43,11.08222874]
[1730582711519,11.08222874,166.49,166.44,21.0285]
[1730582717637,11.08222874,166.49,166.44,11.08222874]
[1730582718248,11.08222874,166.5,166.44,11.08222874]
[1730582718423,11.08222874,166.5,166.45,11.08222874]
[1730582719444,11.08222874,166.5,166.46,21.026]
[1730582723724,11.08222874,166.51,166.46,32.10822874]
[1730582724526,11.08222874,166.53,166.48,11.08222874]
[1730582724847,11.08222874,166.54,166.49,11.08222874]
[1730582725843,11.08222874,166.53,166.48,11.08222874]
[1730582727049,11.08222874,166.53,166.49,21.0222]
[1730582729930,11.08222874,166.54,166.49,32.10442874]
[1730582732836,11.08222874,166.55,166.5,11.08222874]
[1730582733453,11.08222874,166.54,166.49,26.09812874]
[1730582734544,11.08222874,166.54,166.49,32.10442874]
[1730582736251,11.08222874,166.54,166.5,11.08222874]
[1730582736640,11.08222874,166.56,166.51,26.09632874]
[1730582736956,6.0029,166.59,166.52,11.08222874]
[1730582736957,11.08222874,166.57,166.52,11.08222874]
[1730582737563,11.08222874,166.56,166.52,11.08222874]
[1730582737855,11.08222874,166.56,166.53,21.0172]
[1730582739159,11.08222874,166.57,166.53,21.0172]
[1730582740583,6.0029,166.59,166.53,21.0172]
[1730582740584,11.08222874,166.58,166.53,11.08222874]
[1730582742382,11.08222874,166.58,166.54,6.0045]
[1730582743937,11.08222874,166.6,166.55,11.08222874]
[1730582744138,11.08222874,166.61,166.56,11.08222874]
[1730582745541,11.08222874,166.61,166.57,21.0121]
[1730582748059,11.08222874,166.62,166.57,21.0121]
[1730582750060,11.08222874,166.62,166.57,32.09432874]
[1730582750263,11.08222874,166.65,166.6,11.08222874]
[1730582750447,5.9996,166.68,166.6,11.08222874]
[1730582750448,11.08222874,166.66,166.6,11.08222874]
[1730582751351,11.08222874,166.65,166.61,21.0071]
[1730582753757,11.08222874,166.67,166.61,32.08932874]
[1730582755368,11.08222874,166.69,166.64,11.08222874]
[1730582755767,11.08222874,166.68,166.63,11.08222874]
[1730582757048,11.08222874,166.69,166.64,32.08552874]
[1730582757252,11.08222874,166.71,166.65,11.08222874]
[1730582758252,11.08222874,166.71,166.66,21.0008]
[1730582758753,11.69444134,166.72,166.67,11.08222874]
[1730582758960,0.6122126,166.72,166.69,11.08222874]
[1730582759563,0.6122126,166.72,166.7,11.08222874]
[1730582759771,0.6122126,166.72,166.69,11.08222874]
[1730582760461,0.6122126,166.72,166.68,11.08222874]
[1730582762081,0.6122126,166.72,166.66,30.0012]
[1730582762082,0.6122126,166.72,166.69,11.08222874]
[1730582762587,0.6122126,166.72,166.7,20.9958]
[1730582762880,11.08222874,166.71,166.67,14.9992]
[1730582763062,11.08222874,166.69,166.67,14.9992]
[1730582765473,11.08222874,166.7,166.67,14.9992]
[1730582770181,5.9984,166.71,166.67,14.9992]
[1730582770182,11.08222874,166.69,166.67,14.9992]
[1730582770778,23.776884,166.67,166.59,11.08222874]
[1730582770986,11.08222874,166.64,166.59,11.08222874]
[1730582771363,11.08222874,166.63,166.58,11.08222874]
[1730582771977,11.08222874,166.63,166.59,21.0096]
[1730582772580,11.08222874,166.64,166.59,32.09182874]
[1730582775887,11.08222874,166.65,166.6,11.08222874]
[1730582777792,11.08222874,166.65,166.61,21.0071]
[1730582778118,11.08222874,166.66,166.61,32.08932874]
[1730582780479,11.08222874,166.66,166.61,21.0071]
[1730582781790,11.08222874,166.65,166.61,21.0071]
[1730582781983,11.08222874,166.63,166.61,21.0071]
[1730582783980,11.08222874,166.63,166.61,15.0051]
[1730582784691,11.08222874,166.64,166.61,15.0051]
[1730582792509,11.08222874,166.65,166.61,15.0051]
[1730582794494,11.08222874,166.64,166.61,15.0051]
[1730582798810,6.0002,166.66,166.56,6.0037]
[1730582798811,11.08222874,166.62,166.56,6.0037]
[1730582799104,11.08222874,166.61,166.56,17.08592874]
[1730582799484,11.08222874,166.61,166.56,32.09552874]
[1730582805719,11.08222874,166.63,166.58,11.08222874]
[1730582806010,11.08222874,166.62,166.57,11.08222874]
[1730582807814,11.08222874,166.62,166.58,21.0109]
[1730582812012,11.08222874,166.61,166.58,21.0109]
[1730582814201,11.08222874,166.61,166.58,15.0078]
[1730582824720,11.08222874,166.62,166.57,11.08222874]
[1730582824920,11.08222874,166.61,166.56,41.10142874]
[1730582825926,11.08222874,166.61,166.56,62.11482874]
[1730582830930,11.08222874,166.62,166.56,62.11482874]
[1730582840329,11.08222874,166.62,166.56,45.0288]
[1730582841347,11.08222874,166.62,166.56,51.0326]
[1730582845631,11.08222874,166.63,166.56,51.0326]
[1730582847647,11.08222874,166.62,166.56,51.0326]
[1730582870864,11.08222874,166.62,166.56,56.11102874]
[1730582871860,11.08222874,166.62,166.56,45.0288]
[1730582872439,11.08222874,166.62,166.56,51.0326]
[1730582874964,11.08222874,166.62,166.56,56.11102874]
[1730582877944,11.08222874,166.62,166.56,62.11482874]
[1730582878756,11.08222874,166.63,166.56,62.11482874]
[1730582881075,11.08222874,166.62,166.56,51.0326]
[1730582890182,11.08222874,166.67,166.61,11.08222874]
[1730582891567,11.08222874,166.67,166.62,21.0058]
[1730582892385,11.08222874,166.66,166.62,21.0058]
[1730582895082,11.08222874,166.66,166.6,11.08222874]
[1730582896266,11.08222874,166.66,166.61,21.0071]
[1730582900284,11.08222874,166.7,166.64,11.08222874]
[1730582900487,11.08222874,166.7,166.65,11.08222874]
[1730582901476,11.08222874,166.7,166.64,11.08222874]
[1730582903578,11.08222874,166.7,166.65,21.0021]
[1730582906976,11.08222874,166.71,166.66,11.08222874]
[1730582908004,11.08222874,166.71,166.67,20.9995]
[1730582910394,11.08222874,166.71,166.65,11.08222874]
[1730582911593,11.08222874,166.71,166.66,21.0008]
[1730582917105,11.69444134,166.72,166.67,11.08222874]
[1730582917282,0.6122126,166.72,166.68,11.08222874]
[1730582917483,0.6122126,166.72,166.69,11.08222874]
[1730582918593,0.6122126,166.72,166.7,20.9958]
[1730582918797,0.6122126,166.72,166.7,32.07802874]
[1730582921197,11.69444134,166.72,166.7,20.9958]
[1730582921394,11.08222874,166.71,166.7,20.9958]
[1730582922175,11.69444134,166.72,166.7,20.9958]
[1730582922394,11.08222874,166.71,166.7,14.997]
[1730582927897,11.69444134,166.72,166.7,14.997]
[1730582936201,11.08222874,166.71,166.68,5.9995]
[1730582936407,11.08222874,166.69,166.64,21.0027]
[1730582936697,11.08222874,166.67,166.64,21.0027]
[1730582937080,11.08222874,166.66,166.6,11.08222874]
[1730582937280,11.08222874,166.65,166.61,21.0068]
[1730582940193,11.08222874,166.64,166.61,21.0068]
[1730582941300,11.08222874,166.64,166.61,15.0048]
[1730582941696,11.08222874,166.63,166.61,15.0048]
[1730582942194,6.0003,166.66,166.56,11.08222874]
[1730582942195,11.08222874,166.62,166.56,11.08222874]
[1730582942393,11.08222874,166.6,166.57,21.0112]
[1730582943811,11.08222874,166.61,166.57,15.0078]
[1730582945402,11.08222874,166.6,166.57,15.0078]
[1730582954215,10.58222874,166.6,166.57,15.0078]
[1730582959116,10.58222874,166.6,166.54,11.08222874]
[1730582960700,10.58222874,166.6,166.55,21.0147]
[1730582963023,10.58222874,166.6,166.55,26.09272874]
[1730582965927,10.58222874,166.6,166.55,32.09692874]
[1730582970626,10.58222874,166.6,166.55,15.0105]
[1730582971730,11.08222874,166.59,166.55,21.0147]
[1730582971933,11.08222874,166.58,166.55,21.0147]
[1730582973032,11.08222874,166.58,166.55,15.0105]
[1730582975731,67.58131496,166.64,166.55,15.0105]
[1730582975732,11.08222874,166.59,166.55,15.0105]
[1730582979128,11.08222874,166.58,166.55,15.0105]
[1730582979629,11.08222874,166.59,166.55,15.0105]
[1730582981831,11.08222874,166.56,166.52,21.0179]
[1730582982813,11.08222874,166.57,166.52,21.0179]
[1730582985321,11.08222874,166.57,166.52,11.08222874]
[1730582985846,11.08222874,166.57,166.51,41.10912874]
[1730582986750,11.08222874,166.57,166.51,62.12882874]
[1730582993133,11.08222874,166.56,166.51,62.12882874]
[1730582998939,11.08222874,166.56,166.51,51.0466]
[1730583002632,11.08222874,166.57,166.51,62.12882874]
[1730583002837,11.08222874,166.58,166.52,11.08222874]
[1730583003147,11.08222874,166.57,166.51,62.12882874]
[1730583007546,11.08222874,166.58,166.52,11.08222874]
[1730583009538,11.08222874,166.58,166.53,21.0172]
[1730583019571,11.08222874,166.58,166.53,62.12402874]
[1730583019750,11.08222874,166.58,166.53,51.0418]
[1730583020673,11.08222874,166.6,166.54,11.08222874]
[1730583021560,11.08222874,166.6,166.55,21.0147]
[1730583022747,11.08222874,166.59,166.55,21.0147]
[1730583024664,11.08222874,166.58,166.55,21.0147]
[1730583024854,67.48131496,166.64,166.55,21.0147]
[1730583024855,11.08222874,166.57,166.55,21.0147]
[1730583025361,6.1013,166.63,166.55,21.0147]
[1730583025362,11.08222874,166.56,166.55,21.0147]
[1730583026552,11.08222874,166.56,166.52,21.0184]
[1730583030352,11.08222874,166.54,166.52,21.0184]
[1730583031155,11.08222874,166.53,166.52,15.0132]
[1730583031855,11.08222874,166.53,166.49,15.0158]
[1730583032070,11.08222874,166.52,166.49,15.0158]
[1730583032274,4.48338443,166.51,166.49,15.0158]
[1730583032569,4.48338443,166.5,166.49,15.0158]
[1730583032952,4.48297494,166.5,166.49,15.0158]
[1730583036859,4.48199848,166.5,166.49,15.0158]
[1730583037763,4.48189503,166.5,166.49,15.0158]
[1730583043659,4.47782485,166.5,166.49,15.0158]
[1730583047563,4.47655744,166.5,166.49,15.0158]
[1730583048760,4.47655744,166.5,166.49,21.0221]
[1730583050583,4.47655744,166.5,166.49,15.0158]
[1730583054465,11.08222874,166.54,166.49,15.0158]
[1730583054670,4.47562207,166.53,166.49,15.0158]
[1730583054868,4.47562207,166.52,166.49,21.0221]
[1730583055083,4.47562207,166.51,166.49,21.0221]
[1730583055275,11.08222874,166.54,166.49,21.0221]
[1730583055478,4.47560845,166.53,166.49,21.0221]
[1730583055798,4.47560845,166.52,166.49,21.0221]
[1730583055992,4.47560845,166.51,166.49,21.0221]
[1730583056282,11.08222874,166.54,166.49,21.0221]
[1730583056483,4.47555698,166.53,166.49,51.0539]
[1730583056787,4.47555698,166.52,166.49,51.0539]
[1730583057092,4.47555698,166.51,166.49,51.0539]
[1730583057271,11.08222874,166.54,166.49,51.0539]
[1730583057471,4.47560082,166.53,166.49,51.0539]
[1730583057692,4.47560082,166.52,166.49,51.0539]
[1730583057896,4.47560082,166.51,166.49,51.0539]
[1730583058189,11.08222874,166.54,166.49,51.0539]
[1730583058384,4.47554769,166.53,166.49,51.0539]
[1730583058592,4.47554769,166.52,166.49,51.0539]
[1730583058772,4.47554769,166.51,166.49,51.0539]
[1730583058973,11.08222874,166.53,166.49,51.0539]
[1730583059172,4.47556882,166.52,166.49,51.0539]
[1730583059371,4.47556882,166.51,166.49,51.0539]
[1730583059569,4.47556882,166.5,166.49,51.0539]
[1730583060488,4.47556882,166.5,166.49,45.0476]
[1730583065879,4.47556882,166.5,166.49,30.0318]
[1730583066898,4.47680617,166.5,166.49,30.0318]
[1730583068000,11.08222874,166.54,166.49,36.0381]
[1730583068293,4.47689374,166.53,166.49,36.0381]
[1730583068497,4.47689374,166.52,166.49,36.0381]
[1730583068794,4.47689374,166.51,166.49,36.0381]
[1730583068998,4.47684869,166.5,166.49,36.0381]
[1730583069175,11.08222874,166.54,166.49,36.0381]
[1730583069376,4.47700796,166.53,166.49,51.054]
[1730583069579,4.47700796,166.52,166.49,51.054]
[1730583069870,4.47700796,166.51,166.49,51.054]
[1730583070102,4.47700796,166.5,166.49,51.054]
[1730583071687,4.47784125,166.5,166.49,51.054]
[1730583078907,11.08222874,166.54,166.49,51.054]
[1730583079394,4.47862568,166.53,166.49,51.054]
[1730583079587,4.47862568,166.52,166.49,51.054]
[1730583079781,4.47862568,166.51,166.49,51.054]
[1730583079976,4.47862568,166.5,166.49,51.054]
[1730583080602,4.47862568,166.5,166.49,30.0318]
[1730583081390,11.08222874,166.56,166.49,41.11402874]
[1730583081588,4.47887682,166.55,166.5,11.08222874]
[1730583081796,4.47887682,166.54,166.5,11.08222874]
[1730583082008,4.47887682,166.53,166.5,11.08222874]
[1730583082185,4.47887682,166.52,166.5,11.08222874]
[1730583082504,4.47887682,166.51,166.5,11.08222874]
[1730583082692,4.47963301,166.51,166.5,17.08822874]
[1730583085295,11.08222874,166.57,166.5,62.13322874]
[1730583085488,4.48249864,166.56,166.51,11.08222874]
[1730583085688,4.48249864,166.55,166.51,11.08222874]
[1730583085889,4.48249864,166.54,166.51,11.08222874]
[1730583086201,4.48249864,166.53,166.51,11.08222874]
[1730583086400,4.48249864,166.52,166.51,11.08222874]
[1730583087106,4.48249864,166.52,166.51,17.08782874]
[1730583089009,11.08222874,166.58,166.51,56.12452874]
[1730583089316,4.4808535,166.57,166.53,11.08222874]
[1730583089609,4.4808535,166.56,166.53,11.08222874]
[1730583089807,4.4808535,166.55,166.53,11.08222874]
[1730583090000,4.4808535,166.54,166.53,11.08222874]
[1730583090209,11.08222874,166.59,166.53,11.08222874]
[1730583090407,11.08222874,166.59,166.54,21.0159]
[1730583090586,4.48037684,166.58,166.54,21.0159]
[1730583090787,4.48037684,166.57,166.54,21.0159]
[1730583091112,4.48037684,166.56,166.55,11.08222874]
[1730583092195,4.48037684,166.56,166.55,17.08642874]
[1730583096506,11.08222874,166.6,166.55,32.09692874]
[1730583096811,4.47418244,166.59,166.55,32.09692874]
[1730583096991,4.47418244,166.58,166.55,32.09692874]
[1730583097194,4.47419377,166.57,166.55,32.09692874]
[1730583097394,11.08222874,166.6,166.55,32.09692874]
[1730583097609,4.47339873,166.59,166.55,32.09692874]
[1730583097808,4.47339873,166.58,166.55,32.09692874]
[1730583097991,11.08222874,166.6,166.55,32.09692874]
[1730583097992,4.47339873,166.57,166.55,32.09692874]
[1730583098192,11.08222874,166.6,166.55,62.11792874]
[1730583098392,4.47343667,166.59,166.55,62.11792874]
[1730583098599,4.47343667,166.58,166.55,62.11792874]
[1730583098804,4.47343667,166.57,166.55,62.11792874]
[1730583099001,11.08222874,166.6,166.55,62.11792874]
[1730583099315,4.47270821,166.59,166.55,62.11792874]
[1730583099614,4.47270821,166.58,166.55,62.11792874]
[1730583099815,4.47270821,166.57,166.55,62.11792874]
[1730583100005,11.08222874,166.6,166.55,62.11792874]
[1730583100315,4.4722191,166.59,166.55,62.11792874]
[1730583100497,4.4722191,166.58,166.55,62.11792874]
[1730583100695,11.08222874,166.6,166.55,62.11792874]
[1730583101299,15.2614,166.62,166.55,62.11792874]
[1730583101300,4.47169483,166.59,166.55,62.11792874]
[1730583101609,4.47169483,166.58,166.55,62.11792874]
[1730583101814,11.08222874,166.61,166.55,62.11792874]
[1730583102110,4.47130403,166.6,166.56,11.08222874]
[1730583102314,4.47130403,166.59,166.56,11.08222874]
[1730583102622,11.08222874,166.63,166.57,11.08222874]
[1730583102909,4.47087157,166.62,166.57,11.08222874]
[1730583103102,4.47087157,166.61,166.57,11.08222874]
[1730583103304,4.47087157,166.6,166.57,11.08222874]
[1730583103504,4.47087157,166.59,166.58,6.0031]
[1730583104511,11.08222874,166.63,166.58,21.0109]
[1730583104698,15.55266735,166.62,166.58,21.0109]
[1730583104899,4.46970179,166.61,166.58,21.0109]
[1730583105111,4.46970179,166.6,166.58,21.0109]
[1730583105422,4.46970179,166.59,166.58,21.0109]
[1730583108417,4.46970179,166.59,166.58,15.0078]
[1730583111301,11.08222874,166.61,166.58,15.0078]
[1730583111707,4.46608434,166.6,166.58,15.0078]
[1730583111909,11.08222874,166.61,166.58,15.0078]
[1730583112111,4.46608554,166.6,166.58,15.0078]
[1730583112421,11.08222874,166.61,166.58,15.0078]
[1730583112718,4.46592391,166.6,166.58,15.0078]
[1730583113022,11.08222874,166.61,166.58,15.0078]
[1730583113210,4.46592409,166.6,166.58,15.0078]
[1730583113395,11.08222874,166.61,166.58,15.0078]
[1730583113599,4.46580139,166.6,166.58,15.0078]
[1730583113816,11.08222874,166.61,166.58,15.0078]
[1730583114115,4.4658067,166.6,166.58,15.0078]
[1730583114313,4.4658067,166.59,166.58,15.0078]
[1730583114824,11.08222874,166.61,166.58,15.0078]
[1730583115033,4.46568137,166.6,166.58,15.0078]
[1730583115200,11.08222874,166.62,166.58,15.0078]
[1730583115400,4.46568268,166.61,166.58,15.0078]
[1730583115601,4.46568268,166.6,166.58,15.0078]
[1730583115847,11.08222874,166.62,166.58,15.0078]
[1730583116008,4.46556923,166.61,166.58,15.0078]
[1730583116209,4.46556923,166.6,166.58,15.0078]
[1730583116412,11.08222874,166.62,166.58,15.0078]
[1730583116620,4.46543912,166.61,166.58,15.0078]
[1730583116821,4.46543912,166.6,166.58,15.0078]
[1730583117124,4.4652112,166.59,166.58,15.0078]
[1730583117914,4.4652112,166.59,166.55,30.021]
[1730583118226,11.08222874,166.6,166.55,51.0357]
[1730583118415,4.46507269,166.59,166.55,51.0357]
[1730583118603,11.08222874,166.6,166.55,51.0357]
[1730583119026,4.4651077,166.59,166.55,51.0357]
[1730583119219,11.08222874,166.6,166.55,51.0357]
[1730583119404,4.46518904,166.59,166.55,51.0357]
[1730583119605,11.08222874,166.6,166.55,51.0357]
[1730583119807,4.46518903,166.59,166.55,51.0357]
[1730583120030,11.08222874,166.6,166.55,51.0357]
[1730583120327,4.46518894,166.59,166.55,51.0357]
[1730583120508,11.08222874,166.6,166.55,51.0357]
[1730583120708,4.4651884,166.59,166.55,51.0357]
[1730583120911,11.08222874,166.6,166.55,51.0357]
[1730583121129,4.46520644,166.59,166.55,51.0357]
[1730583121328,11.08222874,166.6,166.55,51.0357]
[1730583121629,4.4651709,166.59,166.55,51.0357]
[1730583121930,11.08222874,166.6,166.55,51.0357]
[1730583122114,4.46545309,166.59,166.55,51.0357]
[1730583122314,11.08222874,166.61,166.55,26.09272874]
[1730583122511,4.46570149,166.6,166.55,26.09272874]
[1730583122729,4.46570149,166.59,166.55,26.09272874]
[1730583122930,11.08222874,166.62,166.55,26.09272874]
[1730583123107,4.46571481,166.61,166.55,26.09272874]
[1730583123307,4.46571481,166.6,166.55,26.09272874]
[1730583123510,4.46571481,166.59,166.55,62.11792874]
[1730583123817,11.08222874,166.62,166.55,62.11792874]
[1730583124025,4.46600061,166.61,166.55,62.11792874]
[1730583124207,4.46600061,166.6,166.55,62.11792874]
[1730583124409,4.46600061,166.59,166.55,62.11792874]
[1730583124634,11.08222874,166.62,166.55,62.11792874]
[1730583124825,4.46629514,166.61,166.55,62.11792874]
[1730583125009,4.46629514,166.6,166.55,62.11792874]
[1730583125210,4.46629514,166.59,166.55,62.11792874]
[1730583125525,11.08222874,166.62,166.55,62.11792874]
[1730583125729,4.46661219,166.61,166.55,62.11792874]
[1730583126032,4.46661219,166.6,166.55,62.11792874]
[1730583126229,4.46661219,166.59,166.55,62.11792874]
[1730583126420,11.08222874,166.62,166.55,62.11792874]
[1730583126619,4.46703268,166.61,166.57,11.08222874]
[1730583126935,4.46703268,166.6,166.56,11.08222874]
[1730583127119,4.46703268,166.59,166.56,11.08222874]
[1730583127320,4.46703268,166.58,166.56,11.08222874]
[1730583127628,11.08222874,166.62,166.56,11.08222874]
[1730583127931,4.46735754,166.61,166.56,11.08222874]
[1730583128119,4.46735754,166.6,166.56,11.08222874]
[1730583128330,4.46735754,166.59,166.56,11.08222874]
[1730583128636,11.08222874,166.62,166.56,11.08222874]
[1730583128928,4.46770837,166.61,166.57,21.0121]
[1730583129129,4.46770837,166.6,166.57,21.0121]
[1730583129334,4.46770837,166.59,166.57,21.0121]
[1730583129519,4.46770837,166.58,166.57,21.0121]
[1730583129828,4.46770837,166.58,166.57,20.5121]
[1730583130020,4.46770837,166.61,166.57,20.5121]
[1730583130220,4.46770837,166.6,166.57,20.5121]
[1730583130429,4.46770837,166.59,166.57,20.5121]
[1730583130720,4.46770837,166.58,166.57,20.5121]
[1730583132036,4.46770837,166.61,166.57,20.5121]
[1730583132238,4.46770837,166.6,166.57,20.5121]
[1730583132414,4.46770837,166.59,166.57,20.5121]
[1730583132737,4.46949577,166.58,166.57,20.5121]
[1730583132912,8.93910145,166.58,166.57,20.5121]
[1730583135917,8.94103333,166.58,166.57,20.5121]
[1730583136116,4.47153756,166.58,166.57,20.5121]
[1730583138448,4.47418395,166.58,166.57,20.5121]
[1730583139641,4.47461816,166.58,166.57,20.5121]
[1730583143751,4.47950156,166.58,166.57,20.5121]
[1730583145152,4.47950156,166.58,166.57,31.59432874]
[1730583146341,4.47950156,166.58,166.57,51.59432874]
[1730583146549,11.08222874,166.64,166.57,51.59432874]
[1730583146748,11.08222874,166.64,166.58,11.08222874]
[1730583147039,4.48233406,166.63,166.58,11.08222874]
[1730583147245,4.48233406,166.62,166.58,11.08222874]
[1730583147544,4.48233406,166.61,166.58,11.08222874]
[1730583147847,4.48233406,166.6,166.58,11.08222874]
[1730583148022,4.48233406,166.59,166.58,11.08222874]
[1730583148624,4.48233406,166.59,166.58,17.08532874]
[1730583149034,4.48473801,166.59,166.58,62.10872874]
[1730583151628,4.48473801,166.59,166.58,51.0265]
[1730583154246,11.08222874,166.63,166.58,51.0265]
[1730583154553,4.4899151,166.62,166.58,51.0265]
[1730583154756,4.4899151,166.61,166.58,51.0265]
[1730583154934,4.4899151,166.6,166.58,51.0265]
[1730583155136,4.4899151,166.59,166.58,51.0265]
[1730583157845,4.4901873,166.59,166.58,51.0265]
[1730583161242,4.4901873,166.59,166.58,85.88561274]
[1730583161442,4.49185749,166.59,166.58,85.88561274]
[1730583161670,4.49185749,166.59,166.58,105.88561274]
[1730583163461,0.94505749,166.59,166.58,105.88561274]
[1730583163646,11.08222874,166.68,166.59,43.776884]
[1730583163841,11.08222874,166.68,166.62,11.08222874]
[1730583164660,11.08222874,166.68,166.63,21.0046]
[1730583165146,11.08222874,166.69,166.63,62.09342874]
[1730583167155,11.08222874,166.7,166.64,11.08222874]
[1730583169446,11.08222874,166.7,166.65,21.0021]
[1730583169662,11.08222874,166.69,166.65,21.0021]
[1730583171066,11.08222874,166.68,166.65,21.0021]
[1730583171563,11.08222874,166.68,166.63,30.0066]
[1730583174563,11.08222874,166.68,166.63,51.0112]
[1730583178471,11.08222874,166.69,166.63,62.09342874]
[1730583183482,11.08222874,166.68,166.63,62.09342874]
[1730583185974,11.08222874,166.68,166.63,66.41566574]
[1730583194187,11.08222874,166.69,166.64,11.08222874]
[1730583194486,11.08222874,166.69,166.65,21.0021]
[1730583210973,11.08222874,166.68,166.65,21.0021]
[1730583211995,11.08222874,166.68,166.65,15.0015]
[1730583212487,14.67772444,166.67,166.65,15.0015]
[1730583212685,3.5954957,166.66,166.65,15.0015]
[1730583213498,14.67772444,166.66,166.63,4.322237]
[1730583213779,11.08222874,166.64,166.63,4.322237]
[1730583214099,89.3994234,166.64,166.63,4.322237]
[1730583214394,85.9039277,166.64,166.57,6.0031]
[1730583214697,11.08222874,166.58,166.57,6.0031]
[1730583215298,15.56009365,166.58,166.57,6.0031]
[1730583215589,15.56009365,166.58,166.55,30.021]
[1730583215789,15.56009365,166.57,166.55,30.021]
[1730583215984,11.08222874,166.57,166.55,30.021]
[1730583220685,11.08222874,166.57,166.52,15.0132]
[1730583220911,0.1,166.62,166.52,15.0132]
[1730583220912,15.55875407,166.56,166.52,15.0132]
[1730583221084,11.08222874,166.56,166.52,15.0132]
[1730583221908,11.08222874,166.56,166.52,21.0184]
[1730583225099,11.08222874,166.57,166.52,32.10062874]
[1730583225404,11.08222874,166.57,166.52,62.12702874]
[1730583229104,11.08222874,166.56,166.52,45.0396]
[1730583231205,11.08222874,166.56,166.52,51.0448]
[1730583233493,11.08222874,166.57,166.52,51.0448]
[1730583236289,11.08222874,166.58,166.52,62.12702874]
[1730583239403,11.08222874,166.57,166.52,51.0448]
[1730583243005,11.08222874,166.58,166.52,56.12182874]
[1730583244326,11.08222874,166.58,166.52,62.12702874]
[1730583245432,11.08222874,166.57,166.52,45.0396]
[1730583246505,11.08222874,166.57,166.52,51.0448]
[1730583247803,11.08222874,166.58,166.53,11.08222874]
[1730583248319,11.08222874,166.58,166.52,56.12182874]
[1730583248708,11.08222874,166.59,166.54,11.08222874]
[1730583249905,11.08222874,166.6,166.55,62.11792874]
[1730583250110,11.08222874,166.61,166.55,62.11792874]
[1730583250297,11.08222874,166.61,166.55,92.13892874]
[1730583250501,11.08222874,166.6,166.55,92.13892874]
[1730583254506,11.08222874,166.61,166.56,11.08222874]
[1730583254706,11.08222874,166.61,166.57,21.0121]
[1730583255322,4.46302629,166.6,166.57,21.0121]
[1730583255521,11.08222874,166.61,166.57,21.0121]
[1730583255828,4.46329159,166.6,166.57,21.0121]
[1730583256012,11.08222874,166.61,166.57,21.0121]
[1730583256215,4.46340354,166.6,166.57,21.0121]
[1730583256414,11.08222874,166.61,166.57,21.0121]
[1730583256619,4.46392919,166.6,166.57,21.0121]
[1730583256808,11.08222874,166.61,166.57,21.0121]
[1730583257003,4.46392799,166.6,166.57,21.0121]
[1730583257205,11.08222874,166.61,166.57,21.0121]
[1730583257399,4.46463379,166.6,166.57,21.0121]
[1730583257604,11.08222874,166.61,166.57,21.0121]
[1730583257813,4.46459841,166.6,166.57,21.0121]
[1730583258036,11.08222874,166.61,166.57,21.0121]